[Event "Late-Titled-Tuesday-Blitz-August-29-2023"]
[Site "Chess.com"]
[Date "2023.08.29"]
[Round "7"]
[White "jcreyes69"]
[Black "tarno17"]
[Result "1-0"]
[WhiteElo "2357"]
[BlackElo "2177"]
[TimeControl "180+1"]
[EndTime "15:15:29 PDT"]
[Termination "jcreyes69 won by checkmate"]

1. e4 {[%clk 0:02:57.2]} 1... c5 {[%clk 0:02:59.5]} 2. Nf3 {[%clk 0:02:56.1]}
2... e6 {[%clk 0:02:53.9]} 3. d4 {[%clk 0:02:55.5]} 3... cxd4 {[%clk 0:02:54.3]}
4. Nxd4 {[%clk 0:02:56.4]} 4... a6 {[%clk 0:02:54.7]} 5. Bd3 {[%clk 0:02:55.9]}
5... Bc5 {[%clk 0:02:53.1]} 6. Nb3 {[%clk 0:02:55.2]} 6... Be7 {[%clk 0:02:53]}
7. Be3 {[%clk 0:02:52.5]} 7... Qc7 {[%clk 0:02:47.8]} 8. Qe2 {[%clk 0:02:51.9]}
8... d6 {[%clk 0:02:47.7]} 9. Nc3 {[%clk 0:02:43.8]} 9... Nd7 {[%clk 0:02:47.5]}
10. O-O-O {[%clk 0:02:43.2]} 10... b5 {[%clk 0:02:39.2]} 11. f4 {[%clk
0:02:42.3]} 11... Bb7 {[%clk 0:02:39.1]} 12. f5 {[%clk 0:02:41.2]} 12... e5
{[%clk 0:02:23.3]} 13. g4 {[%clk 0:02:37.1]} 13... b4 {[%clk 0:02:06.5]} 14. Nd5
{[%clk 0:02:29.9]} 14... Bxd5 {[%clk 0:02:00.3]} 15. exd5 {[%clk 0:02:30.8]}
15... Nb6 {[%clk 0:01:47]} 16. Qg2 {[%clk 0:02:07.4]} 16... Nf6 {[%clk
0:01:18.9]} 17. Be2 {[%clk 0:02:06.7]} 17... Rc8 {[%clk 0:01:16.7]} 18. Bxa6
{[%clk 0:02:02.5]} 18... Nfxd5 {[%clk 0:00:53.5]} 19. Bxb6 {[%clk 0:01:53.1]}
19... Nxb6 {[%clk 0:00:49.1]} 20. Bxc8 {[%clk 0:01:52.4]} 20... Qxc8 {[%clk
0:00:46.2]} 21. h4 {[%clk 0:01:48.7]} 21... d5 {[%clk 0:00:34.1]} 22. Qf2 {[%clk
0:01:48]} 22... Qc7 {[%clk 0:00:18]} 23. g5 {[%clk 0:01:47.9]} 23... f6 {[%clk
0:00:17.8]} 24. Rhg1 {[%clk 0:01:43.6]} 24... O-O {[%clk 0:00:16.9]} 25. gxf6
{[%clk 0:01:34.4]} 25... Bxf6 {[%clk 0:00:16.2]} 26. h5 {[%clk 0:01:33.8]} 26...
h6 {[%clk 0:00:14]} 27. Qc5 {[%clk 0:01:27.8]} 27... Qb7 {[%clk 0:00:12.2]} 28.
Qd6 {[%clk 0:01:22.1]} 28... d4 {[%clk 0:00:06.3]} 29. Nc5 {[%clk 0:01:15.5]}
29... Qa7 {[%clk 0:00:05.3]} 30. Ne4 {[%clk 0:01:08.3]} 30... Kh8 {[%clk
0:00:01.4]} 31. Qxf8+ {[%clk 0:01:06]} 31... Kh7 {[%clk 0:00:01.6]} 32. Qxf6
{[%clk 0:00:54.8]} 32... gxf6 {[%clk 0:00:02.5]} 33. Nxf6+ {[%clk 0:00:54.8]}
33... Kh8 {[%clk 0:00:02.7]} 34. Rg8# {[%clk 0:00:55.7]} 1-0

[Event "Late-Titled-Tuesday-Blitz-August-29-2023"]
[Site "Chess.com"]
[Date "2023.08.29"]
[Round "7"]
[White "nihalsarin"]
[Black "CheckThis4"]
[Result "1-0"]
[WhiteElo "3110"]
[BlackElo "2663"]
[TimeControl "180+1"]
[EndTime "15:15:33 PDT"]
[Termination "nihalsarin won by resignation"]

1. e4 {[%clk 0:02:51.5]} 1... c5 {[%clk 0:02:59.4]} 2. Nf3 {[%clk 0:02:45.5]}
2... d6 {[%clk 0:02:59.1]} 3. Nc3 {[%clk 0:02:44.5]} 3... Nf6 {[%clk 0:02:57.3]}
4. e5 {[%clk 0:02:45]} 4... dxe5 {[%clk 0:02:56.9]} 5. Nxe5 {[%clk 0:02:45.9]}
5... Nbd7 {[%clk 0:02:51.9]} 6. d4 {[%clk 0:02:45.3]} 6... e6 {[%clk 0:02:35.2]}
7. g3 {[%clk 0:02:31.8]} 7... cxd4 {[%clk 0:02:26.5]} 8. Qxd4 {[%clk 0:02:32.7]}
8... Bc5 {[%clk 0:02:22.6]} 9. Qa4 {[%clk 0:02:27.4]} 9... O-O {[%clk
0:02:19.1]} 10. Nd3 {[%clk 0:02:24.1]} 10... Bb6 {[%clk 0:02:00.3]} 11. Bg2
{[%clk 0:02:23]} 11... Nc5 {[%clk 0:01:52.6]} 12. Nxc5 {[%clk 0:02:14.3]} 12...
Bxc5 {[%clk 0:01:53.5]} 13. O-O {[%clk 0:02:11.5]} 13... Bd7 {[%clk 0:01:46.7]}
14. Qb3 {[%clk 0:02:09.6]} 14... Rb8 {[%clk 0:01:41.1]} 15. Bf4 {[%clk
0:02:07.4]} 15... Rc8 {[%clk 0:01:33.6]} 16. Bxb7 {[%clk 0:02:07.3]} 16... Bc6
{[%clk 0:01:31.1]} 17. Rad1 {[%clk 0:02:05.7]} 17... Qe7 {[%clk 0:01:27.5]} 18.
Bxc8 {[%clk 0:01:44]} 18... Rxc8 {[%clk 0:01:28.4]} 19. Na4 {[%clk 0:01:43.1]}
19... h6 {[%clk 0:01:21.5]} 20. Nxc5 {[%clk 0:01:24.9]} 20... Qxc5 {[%clk
0:01:22.4]} 21. Qc3 {[%clk 0:01:25.4]} 21... Qh5 {[%clk 0:01:17.2]} 22. f3
{[%clk 0:01:21.3]} 22... Bb7 {[%clk 0:01:02.1]} 23. Qe5 {[%clk 0:01:15.7]} 23...
Qh3 {[%clk 0:00:45.2]} 24. Rd2 {[%clk 0:01:09.4]} 24... Nd5 {[%clk 0:00:39.9]}
25. c4 {[%clk 0:01:03.5]} 25... Rxc4 {[%clk 0:00:32.1]} 26. Qb8+ {[%clk
0:01:04]} 26... Bc8 {[%clk 0:00:31.9]} 27. Qb5 {[%clk 0:00:58.5]} 27... Nb6
{[%clk 0:00:16.6]} 28. Qe8+ {[%clk 0:00:45.3]} 28... Kh7 {[%clk 0:00:16.6]} 29.
Qxf7 {[%clk 0:00:46.2]} 29... Nd5 {[%clk 0:00:14.1]} 30. Be5 {[%clk 0:00:42.3]}
1-0

[Event "Late-Titled-Tuesday-Blitz-August-29-2023"]
[Site "Chess.com"]
[Date "2023.08.29"]
[Round "7"]
[White "Beca95"]
[Black "KaydenTroffChess"]
[Result "1-0"]
[WhiteElo "2952"]
[BlackElo "2797"]
[TimeControl "180+1"]
[EndTime "15:15:33 PDT"]
[Termination "Beca95 won by resignation"]

1. d4 {[%clk 0:03:00.9]} 1... Nf6 {[%clk 0:02:57.8]} 2. c4 {[%clk 0:03:00.9]}
2... g6 {[%clk 0:02:58]} 3. Nc3 {[%clk 0:03:00.9]} 3... d5 {[%clk 0:02:58.4]} 4.
Nf3 {[%clk 0:03:00.2]} 4... Bg7 {[%clk 0:02:58.2]} 5. h4 {[%clk 0:03:00.7]} 5...
h6 {[%clk 0:02:55.4]} 6. cxd5 {[%clk 0:02:58.8]} 6... Nxd5 {[%clk 0:02:55.6]} 7.
e4 {[%clk 0:02:59.3]} 7... Nxc3 {[%clk 0:02:55.7]} 8. bxc3 {[%clk 0:03:00]} 8...
c5 {[%clk 0:02:55.8]} 9. Bb5+ {[%clk 0:02:46.3]} 9... Nc6 {[%clk 0:02:54.3]} 10.
d5 {[%clk 0:02:45]} 10... Qa5 {[%clk 0:02:53.8]} 11. Rb1 {[%clk 0:02:43.6]}
11... Bxc3+ {[%clk 0:02:48.9]} 12. Bd2 {[%clk 0:02:30]} 12... a6 {[%clk
0:02:49.1]} 13. Ba4 {[%clk 0:02:29.1]} 13... Bxd2+ {[%clk 0:02:48.5]} 14. Nxd2
{[%clk 0:02:21.3]} 14... b5 {[%clk 0:02:38.5]} 15. dxc6 {[%clk 0:02:20.4]} 15...
bxa4 {[%clk 0:02:25.6]} 16. O-O {[%clk 0:02:17.5]} 16... Be6 {[%clk 0:02:17.7]}
17. Nf3 {[%clk 0:02:07.7]} 17... O-O {[%clk 0:02:10]} 18. Qc1 {[%clk 0:01:56.8]}
18... Kh7 {[%clk 0:01:56.3]} 19. Rb7 {[%clk 0:01:56.5]} 19... Rac8 {[%clk
0:01:38.5]} 20. Ne5 {[%clk 0:01:36.9]} 20... c4 {[%clk 0:01:20]} 21. Qf4 {[%clk
0:01:10.1]} 21... Qc5 {[%clk 0:01:06.7]} 22. Nd7 {[%clk 0:01:06.9]} 22... Qxc6
{[%clk 0:00:35.8]} 23. Nxf8+ {[%clk 0:01:05.7]} 23... Rxf8 {[%clk 0:00:36.7]}
24. Rxe7 {[%clk 0:01:03.5]} 24... Rc8 {[%clk 0:00:34.3]} 25. Rd1 {[%clk
0:00:51.3]} 25... Kg8 {[%clk 0:00:10.8]} 26. Rd6 {[%clk 0:00:44.9]} 26... Qc5
{[%clk 0:00:10.2]} 27. Rdxe6 {[%clk 0:00:43.8]} 27... c3 {[%clk 0:00:05.1]} 28.
Qxf7+ {[%clk 0:00:42]} 1-0

[Event "Late-Titled-Tuesday-Blitz-August-29-2023"]
[Site "Chess.com"]
[Date "2023.08.29"]
[Round "7"]
[White "jaskol95"]
[Black "MarcoRiehle"]
[Result "0-1"]
[WhiteElo "2581"]
[BlackElo "2833"]
[TimeControl "180+1"]
[EndTime "15:15:46 PDT"]
[Termination "MarcoRiehle won by checkmate"]

1. e4 {[%clk 0:03:00.9]} 1... e5 {[%clk 0:02:59.5]} 2. Nf3 {[%clk 0:03:01.1]}
2... Nc6 {[%clk 0:02:59.2]} 3. Bc4 {[%clk 0:03:01.7]} 3... Bc5 {[%clk
0:02:58.7]} 4. c3 {[%clk 0:03:00.7]} 4... Nf6 {[%clk 0:02:58.6]} 5. d4 {[%clk
0:02:59.6]} 5... exd4 {[%clk 0:02:59.5]} 6. cxd4 {[%clk 0:02:58.8]} 6... Bb4+
{[%clk 0:02:59.4]} 7. Kf1 {[%clk 0:02:58.4]} 7... d5 {[%clk 0:02:57.4]} 8. exd5
{[%clk 0:02:51.1]} 8... Nxd5 {[%clk 0:02:58.3]} 9. Qb3 {[%clk 0:02:49.1]} 9...
Be6 {[%clk 0:02:42.6]} 10. Nc3 {[%clk 0:02:47.1]} 10... Bxc3 {[%clk 0:02:36.6]}
11. bxc3 {[%clk 0:02:46.2]} 11... O-O {[%clk 0:02:35.8]} 12. Bd3 {[%clk
0:02:39.9]} 12... Nf4 {[%clk 0:02:28]} 13. Qc2 {[%clk 0:02:31.7]} 13... Nxd3
{[%clk 0:02:27.5]} 14. Qxd3 {[%clk 0:02:32]} 14... h6 {[%clk 0:02:27.3]} 15. h3
{[%clk 0:02:27.6]} 15... Na5 {[%clk 0:02:20.1]} 16. Kg1 {[%clk 0:02:25.9]} 16...
Nc4 {[%clk 0:02:18]} 17. Rb1 {[%clk 0:02:20.2]} 17... Qd5 {[%clk 0:02:10.4]} 18.
Bf4 {[%clk 0:02:11.3]} 18... Bf5 {[%clk 0:02:03.3]} 19. Qd1 {[%clk 0:02:06.2]}
19... Bxb1 {[%clk 0:02:02.5]} 20. Qxb1 {[%clk 0:02:07.1]} 20... b6 {[%clk
0:01:55.7]} 21. Kh2 {[%clk 0:02:06.8]} 21... Rfe8 {[%clk 0:01:55]} 22. Ne5
{[%clk 0:02:04.9]} 22... Nxe5 {[%clk 0:01:53.6]} 23. Bxe5 {[%clk 0:02:05.8]}
23... Rxe5 {[%clk 0:01:54]} 24. dxe5 {[%clk 0:02:05.7]} 24... Qxe5+ {[%clk
0:01:54.9]} 25. g3 {[%clk 0:02:05.6]} 25... Qxc3 {[%clk 0:01:55]} 26. Qe4 {[%clk
0:02:04.8]} 26... Rd8 {[%clk 0:01:54.1]} 27. Qe7 {[%clk 0:02:02.6]} 27... Qd2
{[%clk 0:01:46.8]} 28. Kg2 {[%clk 0:02:02.5]} 28... Qd5+ {[%clk 0:01:39.5]} 29.
Kh2 {[%clk 0:02:02.6]} 29... Kh7 {[%clk 0:01:33.8]} 30. Re1 {[%clk 0:02:00.1]}
30... Qxa2 {[%clk 0:01:31.5]} 31. Re2 {[%clk 0:01:39.7]} 31... Rd2 {[%clk
0:01:25.8]} 32. Rxd2 {[%clk 0:01:39.7]} 32... Qxd2 {[%clk 0:01:26.7]} 33. Qxf7
{[%clk 0:01:40.3]} 33... Qc2 {[%clk 0:01:26.4]} 34. h4 {[%clk 0:01:34.9]} 34...
a5 {[%clk 0:01:25.7]} 35. Kh3 {[%clk 0:01:34.5]} 35... a4 {[%clk 0:01:24.8]} 36.
f4 {[%clk 0:01:34.8]} 36... a3 {[%clk 0:01:13.1]} 37. f5 {[%clk 0:01:33.7]}
37... Qc6 {[%clk 0:01:13.3]} 38. Kg4 {[%clk 0:01:18.5]} 38... b5 {[%clk
0:01:06.8]} 39. Kh3 {[%clk 0:01:06.2]} 39... b4 {[%clk 0:01:01.7]} 40. Qb3
{[%clk 0:01:06.4]} 40... Qh1+ {[%clk 0:01:00.2]} 41. Kg4 {[%clk 0:01:06.1]}
41... Qe4+ {[%clk 0:01:00.8]} 42. Kh3 {[%clk 0:01:06.2]} 42... Qxf5+ {[%clk
0:01:01]} 43. Kg2 {[%clk 0:01:06.6]} 43... Qe4+ {[%clk 0:01:00.7]} 44. Kh3
{[%clk 0:01:07.1]} 44... c5 {[%clk 0:00:59.9]} 45. h5 {[%clk 0:01:06.8]} 45...
Qf5+ {[%clk 0:00:58.8]} 46. g4 {[%clk 0:01:05.7]} 46... Qe4 {[%clk 0:00:58.9]}
47. Kh4 {[%clk 0:01:03.1]} 47... c4 {[%clk 0:00:51.2]} 48. Qxb4 {[%clk
0:01:03.6]} 48... a2 {[%clk 0:00:51.6]} 49. Qa5 {[%clk 0:01:00.1]} 49... Qc2
{[%clk 0:00:43.7]} 50. g5 {[%clk 0:00:55.4]} 50... Qh2+ {[%clk 0:00:41.5]} 51.
Kg4 {[%clk 0:00:55.6]} 51... Qg2+ {[%clk 0:00:41.9]} 52. Kf4 {[%clk 0:00:54.6]}
52... Qxg5+ {[%clk 0:00:41.8]} 53. Qxg5 {[%clk 0:00:53]} 53... hxg5+ {[%clk
0:00:42.7]} 54. Kg4 {[%clk 0:00:52.5]} 54... a1=Q {[%clk 0:00:42.7]} 55. h6
{[%clk 0:00:53.4]} 55... gxh6 {[%clk 0:00:41.9]} 56. Kh5 {[%clk 0:00:54]} 56...
Qd1# {[%clk 0:00:42]} 0-1

[Event "Late-Titled-Tuesday-Blitz-August-29-2023"]
[Site "Chess.com"]
[Date "2023.08.29"]
[Round "7"]
[White "colegiodemadrid"]
[Black "rdarruda"]
[Result "0-1"]
[WhiteElo "2444"]
[BlackElo "2578"]
[TimeControl "180+1"]
[EndTime "15:15:55 PDT"]
[Termination "rdarruda won by checkmate"]

1. e4 {[%clk 0:03:00.9]} 1... c5 {[%clk 0:02:55.3]} 2. Nf3 {[%clk 0:03:01.3]}
2... Nc6 {[%clk 0:02:52.6]} 3. d4 {[%clk 0:03:01.7]} 3... cxd4 {[%clk
0:02:52.2]} 4. Nxd4 {[%clk 0:03:02.6]} 4... e5 {[%clk 0:02:51.9]} 5. Nb5 {[%clk
0:03:02.3]} 5... a6 {[%clk 0:02:50.2]} 6. Nd6+ {[%clk 0:03:01.8]} 6... Bxd6
{[%clk 0:02:50]} 7. Qxd6 {[%clk 0:03:02.5]} 7... Qe7 {[%clk 0:02:50.3]} 8. Qxe7+
{[%clk 0:03:01.5]} 8... Ngxe7 {[%clk 0:02:51.2]} 9. Nc3 {[%clk 0:03:01.5]} 9...
Nb4 {[%clk 0:02:50.4]} 10. Bd3 {[%clk 0:03:00.8]} 10... d5 {[%clk 0:02:49.4]}
11. exd5 {[%clk 0:03:00.6]} 11... Bf5 {[%clk 0:02:49.4]} 12. Ne4 {[%clk
0:02:23.2]} 12... Bxe4 {[%clk 0:02:06.3]} 13. Bxe4 {[%clk 0:02:20.6]} 13... f5
{[%clk 0:02:06.1]} 14. a3 {[%clk 0:02:06.9]} 14... fxe4 {[%clk 0:01:58]} 15.
axb4 {[%clk 0:02:06.4]} 15... Nxd5 {[%clk 0:01:58.6]} 16. c3 {[%clk 0:02:06.8]}
16... O-O-O {[%clk 0:01:52.4]} 17. O-O {[%clk 0:02:05.9]} 17... Nf6 {[%clk
0:01:47.8]} 18. Re1 {[%clk 0:02:04.1]} 18... h6 {[%clk 0:01:44.7]} 19. Ra5
{[%clk 0:02:00.5]} 19... Rhe8 {[%clk 0:01:43.1]} 20. h3 {[%clk 0:01:54.6]} 20...
Rd3 {[%clk 0:01:38.2]} 21. Be3 {[%clk 0:01:47.9]} 21... Kc7 {[%clk 0:01:34.7]}
22. b5 {[%clk 0:01:45]} 22... axb5 {[%clk 0:01:29.3]} 23. Rxb5 {[%clk
0:01:45.9]} 23... Nd5 {[%clk 0:01:24.8]} 24. Bc1 {[%clk 0:01:39.1]} 24... Kc6
{[%clk 0:01:21.8]} 25. Ra5 {[%clk 0:01:32.9]} 25... Nf6 {[%clk 0:01:22.1]} 26.
Be3 {[%clk 0:01:29.6]} 26... Nd5 {[%clk 0:01:19.9]} 27. Bc1 {[%clk 0:01:24.4]}
27... Re7 {[%clk 0:01:10.4]} 28. Kh2 {[%clk 0:01:21.2]} 28... b6 {[%clk
0:01:06.3]} 29. Ra4 {[%clk 0:01:15.5]} 29... Nf6 {[%clk 0:01:05]} 30. Rc4+
{[%clk 0:01:12.5]} 30... Kb7 {[%clk 0:01:01]} 31. Be3 {[%clk 0:01:07.3]} 31...
Red7 {[%clk 0:00:59.5]} 32. Rb4 {[%clk 0:01:06.7]} 32... R7d6 {[%clk 0:00:56.3]}
33. Rb5 {[%clk 0:01:06.3]} 33... R3d5 {[%clk 0:00:51.3]} 34. Rb4 {[%clk
0:01:02.7]} 34... Rd3 {[%clk 0:00:50.2]} 35. g4 {[%clk 0:01:01.7]} 35... R3d5
{[%clk 0:00:47.4]} 36. Ra1 {[%clk 0:01:00.1]} 36... Kc6 {[%clk 0:00:46.2]} 37.
Rxb6+ {[%clk 0:00:56.4]} 37... Kd7 {[%clk 0:00:45.5]} 38. Ra7+ {[%clk
0:00:56.1]} 38... Ke6 {[%clk 0:00:45.7]} 39. Rb4 {[%clk 0:00:50.4]} 39... Rd7
{[%clk 0:00:42.8]} 40. Ra6+ {[%clk 0:00:49.8]} 40... R5d6 {[%clk 0:00:42.3]} 41.
Raa4 {[%clk 0:00:50.2]} 41... Rd1 {[%clk 0:00:39.1]} 42. Kg2 {[%clk 0:00:45.8]}
42... g5 {[%clk 0:00:37]} 43. Ra6+ {[%clk 0:00:44.4]} 43... Kf7 {[%clk
0:00:35.8]} 44. Rbb6 {[%clk 0:00:40.1]} 44... Nd5 {[%clk 0:00:35.4]} 45. Rxh6
{[%clk 0:00:39.9]} 45... Nxe3+ {[%clk 0:00:35]} 46. Kg3 {[%clk 0:00:31.8]} 46...
Rg1+ {[%clk 0:00:33.9]} 47. Kh2 {[%clk 0:00:31.4]} 47... Rg2+ {[%clk 0:00:34.5]}
48. Kh1 {[%clk 0:00:31.7]} 48... Rd1# {[%clk 0:00:35]} 0-1

[Event "Late-Titled-Tuesday-Blitz-August-29-2023"]
[Site "Chess.com"]
[Date "2023.08.29"]
[Round "7"]
[White "Laico"]
[Black "MathiasCasalaspro"]
[Result "0-1"]
[WhiteElo "2409"]
[BlackElo "2268"]
[TimeControl "180+1"]
[EndTime "15:15:55 PDT"]
[Termination "MathiasCasalaspro won by checkmate"]

1. e4 {[%clk 0:02:55.5]} 1... c6 {[%clk 0:02:59.9]} 2. d4 {[%clk 0:02:48.3]}
2... d5 {[%clk 0:03:00.8]} 3. f3 {[%clk 0:02:47.9]} 3... e5 {[%clk 0:02:59.5]}
4. dxe5 {[%clk 0:02:46.4]} 4... Bc5 {[%clk 0:02:58.9]} 5. exd5 {[%clk
0:02:46.8]} 5... Qb6 {[%clk 0:02:40.7]} 6. Nh3 {[%clk 0:02:46.5]} 6... cxd5
{[%clk 0:02:32.6]} 7. Nc3 {[%clk 0:02:41.4]} 7... Bxh3 {[%clk 0:02:08]} 8. gxh3
{[%clk 0:02:17.8]} 8... Bf2+ {[%clk 0:01:37.7]} 9. Ke2 {[%clk 0:02:17.4]} 9...
Bh4 {[%clk 0:01:33.3]} 10. Be3 {[%clk 0:02:15.4]} 10... Qa6+ {[%clk 0:01:32.6]}
11. Kd2 {[%clk 0:02:12.1]} 11... Qa5 {[%clk 0:01:18.6]} 12. Kc1 {[%clk
0:01:44.6]} 12... Ne7 {[%clk 0:01:16.8]} 13. Rg1 {[%clk 0:01:34.5]} 13... O-O
{[%clk 0:01:11.5]} 14. f4 {[%clk 0:01:27.5]} 14... g6 {[%clk 0:01:01.8]} 15. Bd3
{[%clk 0:00:59]} 15... Nbc6 {[%clk 0:00:33.5]} 16. Qg4 {[%clk 0:00:58.8]} 16...
d4 {[%clk 0:00:29.5]} 17. Ne4 {[%clk 0:00:58.2]} 17... Nf5 {[%clk 0:00:18.7]}
18. Qxf5 {[%clk 0:00:54.5]} 18... dxe3 {[%clk 0:00:17.4]} 19. Qg4 {[%clk
0:00:27]} 19... Bf2 {[%clk 0:00:16.5]} 20. Rf1 {[%clk 0:00:18.8]} 20... Nd4
{[%clk 0:00:13.5]} 21. b3 {[%clk 0:00:14.2]} 21... Rac8 {[%clk 0:00:13]} 22.
Nxf2 {[%clk 0:00:13.8]} 22... exf2 {[%clk 0:00:12.2]} 23. Kb2 {[%clk 0:00:13.9]}
23... Qc3+ {[%clk 0:00:11.8]} 24. Kb1 {[%clk 0:00:13.1]} 24... Nxc2 {[%clk
0:00:11.8]} 25. Bc4 {[%clk 0:00:02.6]} 25... Na3# {[%clk 0:00:11.7]} 0-1

[Event "Late-Titled-Tuesday-Blitz-August-29-2023"]
[Site "Chess.com"]
[Date "2023.08.29"]
[Round "7"]
[White "VladimirKramnik"]
[Black "bascheyaro"]
[Result "1-0"]
[WhiteElo "2958"]
[BlackElo "2827"]
[TimeControl "180+1"]
[EndTime "15:16:02 PDT"]
[Termination "VladimirKramnik won on time"]

1. d4 {[%clk 0:03:00.9]} 1... d5 {[%clk 0:03:00]} 2. Nf3 {[%clk 0:03:00.6]} 2...
Nf6 {[%clk 0:03:00.2]} 3. e3 {[%clk 0:03:00.4]} 3... Bf5 {[%clk 0:02:59.7]} 4.
Nh4 {[%clk 0:02:56.7]} 4... Be6 {[%clk 0:02:59]} 5. Bd3 {[%clk 0:02:54.8]} 5...
g6 {[%clk 0:02:59.1]} 6. c3 {[%clk 0:02:51.6]} 6... Bg7 {[%clk 0:02:57.4]} 7.
Nd2 {[%clk 0:02:51.1]} 7... Nbd7 {[%clk 0:02:54.1]} 8. O-O {[%clk 0:02:49.2]}
8... c5 {[%clk 0:02:52.1]} 9. f4 {[%clk 0:02:49.1]} 9... Bg4 {[%clk 0:02:39.6]}
10. Qe1 {[%clk 0:02:45.9]} 10... e6 {[%clk 0:02:35.9]} 11. h3 {[%clk 0:02:28.5]}
11... Bf5 {[%clk 0:02:36.1]} 12. Nxf5 {[%clk 0:02:25.3]} 12... gxf5 {[%clk
0:02:37]} 13. Nf3 {[%clk 0:02:23.9]} 13... Ne4 {[%clk 0:02:33]} 14. Kh2 {[%clk
0:02:15.3]} 14... Rg8 {[%clk 0:02:31.2]} 15. Bd2 {[%clk 0:02:03]} 15... c4
{[%clk 0:02:24.6]} 16. Bxe4 {[%clk 0:02:00.5]} 16... fxe4 {[%clk 0:02:24]} 17.
Ne5 {[%clk 0:01:58.8]} 17... f5 {[%clk 0:02:20.8]} 18. Qe2 {[%clk 0:01:54.7]}
18... Bxe5 {[%clk 0:02:14.9]} 19. fxe5 {[%clk 0:01:50.9]} 19... Qg5 {[%clk
0:02:12.7]} 20. Be1 {[%clk 0:01:50.8]} 20... Nf8 {[%clk 0:02:02.5]} 21. b3
{[%clk 0:01:48]} 21... Rc8 {[%clk 0:02:02.2]} 22. Rb1 {[%clk 0:01:44.4]} 22...
b6 {[%clk 0:01:57.5]} 23. a4 {[%clk 0:01:40.9]} 23... Ng6 {[%clk 0:01:49.8]} 24.
bxc4 {[%clk 0:01:32.8]} 24... Rxc4 {[%clk 0:01:44.3]} 25. a5 {[%clk 0:01:32.9]}
25... bxa5 {[%clk 0:01:29.8]} 26. Rb8+ {[%clk 0:01:31.2]} 26... Kf7 {[%clk
0:01:30.2]} 27. Rb7+ {[%clk 0:01:31.1]} 27... Ne7 {[%clk 0:01:30]} 28. Rxa7
{[%clk 0:01:28]} 28... Ra4 {[%clk 0:01:18.6]} 29. Rf4 {[%clk 0:01:17.8]} 29...
Qg6 {[%clk 0:00:38.9]} 30. Bh4 {[%clk 0:01:15.8]} 30... Re8 {[%clk 0:00:38.3]}
31. Qb2 {[%clk 0:01:09.8]} 31... Qg7 {[%clk 0:00:18.7]} 32. Bf6 {[%clk
0:00:58.2]} 32... Qf8 {[%clk 0:00:15.6]} 33. Rh4 {[%clk 0:00:50.2]} 33... h6
{[%clk 0:00:09.5]} 34. Qe2 {[%clk 0:00:46.7]} 34... Kg8 {[%clk 0:00:02.8]} 35.
Qh5 {[%clk 0:00:45.3]} 35... Ra2 {[%clk 0:00:02.8]} 36. Qxh6 {[%clk 0:00:40.2]}
36... Qxh6 {[%clk 0:00:02.8]} 37. Rxh6 {[%clk 0:00:40.9]} 1-0

[Event "Late-Titled-Tuesday-Blitz-August-29-2023"]
[Site "Chess.com"]
[Date "2023.08.29"]
[Round "7"]
[White "mistrzemi"]
[Black "biostatistician"]
[Result "1-0"]
[WhiteElo "2387"]
[BlackElo "2566"]
[TimeControl "180+1"]
[EndTime "15:16:02 PDT"]
[Termination "mistrzemi won by checkmate"]

1. e4 {[%clk 0:03:00.9]} 1... e5 {[%clk 0:02:59.8]} 2. Nf3 {[%clk 0:03:00.3]}
2... Nc6 {[%clk 0:03:00.2]} 3. Bc4 {[%clk 0:03:00.9]} 3... Bc5 {[%clk
0:02:59.8]} 4. d3 {[%clk 0:02:57.4]} 4... Nf6 {[%clk 0:02:59.6]} 5. Bg5 {[%clk
0:02:57.3]} 5... h6 {[%clk 0:02:52.8]} 6. Bh4 {[%clk 0:02:54.5]} 6... d6 {[%clk
0:02:52.8]} 7. Nc3 {[%clk 0:02:48.7]} 7... Be6 {[%clk 0:02:50.9]} 8. Nd5 {[%clk
0:02:32]} 8... g5 {[%clk 0:02:46.7]} 9. Nxg5 {[%clk 0:01:41.2]} 9... Bxd5 {[%clk
0:02:19.6]} 10. exd5 {[%clk 0:01:41.3]} 10... hxg5 {[%clk 0:02:19.3]} 11. Bxg5
{[%clk 0:01:41]} 11... Rg8 {[%clk 0:01:36.1]} 12. h4 {[%clk 0:01:28.4]} 12...
Nb8 {[%clk 0:01:35.4]} 13. Qf3 {[%clk 0:01:25.4]} 13... Nbd7 {[%clk 0:01:35.3]}
14. Bb5 {[%clk 0:01:21.4]} 14... Rg6 {[%clk 0:01:34.8]} 15. O-O-O {[%clk
0:00:55.9]} 15... a6 {[%clk 0:01:11.1]} 16. Bxd7+ {[%clk 0:00:54.1]} 16... Kxd7
{[%clk 0:01:12]} 17. Qf5+ {[%clk 0:00:54.3]} 17... Ke7 {[%clk 0:01:12.3]} 18.
Rde1 {[%clk 0:00:28.5]} 18... Qd7 {[%clk 0:01:03.4]} 19. g4 {[%clk 0:00:15.3]}
19... Rag8 {[%clk 0:00:54.1]} 20. f4 {[%clk 0:00:14.3]} 20... Kf8 {[%clk
0:00:34.4]} 21. fxe5 {[%clk 0:00:13]} 21... dxe5 {[%clk 0:00:29.5]} 22. Qxe5
{[%clk 0:00:07.1]} 22... Nxg4 {[%clk 0:00:26.5]} 23. Qc3 {[%clk 0:00:06.7]}
23... Bd6 {[%clk 0:00:25.2]} 24. Kb1 {[%clk 0:00:05.8]} 24... f6 {[%clk
0:00:23.9]} 25. Bc1 {[%clk 0:00:05.6]} 25... Qf5 {[%clk 0:00:23.8]} 26. h5
{[%clk 0:00:05.3]} 26... R6g7 {[%clk 0:00:23]} 27. Rhf1 {[%clk 0:00:05.5]} 27...
Qxd5 {[%clk 0:00:22]} 28. Bh6 {[%clk 0:00:02.9]} 28... Nxh6 {[%clk 0:00:18.7]}
29. Qxf6+ {[%clk 0:00:03.1]} 29... Nf7 {[%clk 0:00:17]} 30. Qd8# {[%clk
0:00:02.4]} 1-0